fUST/lending_fUST_20250619
["ID","MTS","AMOUNT","RATE_DAILY","PERIOD"]
[366508000,1750295441652,-800.0,0.00023795,2]
[366508003,1750295441662,-359.7165454,0.00023799,2]
[366508004,1750295441671,-3000.0,0.000238,2]
[366508006,1750295441681,-3000.0,0.000238,2]
[366508008,1750295441690,-2178.08,0.000238,2]
[366508010,1750295441700,-151.0,0.000238,7]
[366508012,1750295441710,-3000.0,0.0002381,2]
[366508015,1750295441719,-3000.0,0.0002381,2]
[366508017,1750295441729,-420.0,0.00023817,2]
[366508019,1750295441739,-800.0,0.00023819,2]
[366508021,1750295441749,-3000.0,0.0002382,2]
[366508022,1750295441758,-3000.0,0.0002382,2]
[366508025,1750295441769,-3000.0,0.0002383,2]
[366508027,1750295441779,-3000.0,0.0002383,2]
[366508029,1750295441788,-168.17519988,0.0002383,2]
[366508031,1750295441798,-501.336167,0.0002383,2]
[366508033,1750295441807,-794.62504967,0.00023831,10]
[366508035,1750295441817,-460.0,0.00023834,6]
[366508037,1750295441828,-460.0,0.00023834,6]
[366508038,1750295441838,-812.17,0.00023834,6]
[366508040,1750295441848,-2390.19,0.00023834,6]
[366508042,1750295441857,-1566.95,0.00023834,6]
[366508043,1750295441868,-2035.15,0.00023834,6]
[366508045,1750295441878,-460.0,0.00023834,6]
[366508046,1750295441888,-460.0,0.00023835,6]
[366508047,1750295441898,-460.0,0.00023835,6]
[366508048,1750295441907,-524.37,0.00023835,6]
[366508049,1750295441917,-460.0,0.00023835,6]
[366508050,1750295441927,-1133.8,0.00023835,6]
[366508051,1750295441936,-2651.6,0.00023835,6]
[366508052,1750295441945,-2125.11,0.00023835,6]
[366508053,1750295441955,-1356.99,0.00023835,6]
[366508054,1750295441964,-524.3,0.00023835,6]
[366508055,1750295441974,-2131.99,0.00023835,6]
[366508056,1750295441983,-460.59,0.00023835,6]
[366508057,1750295441992,-661.92,0.00023835,6]
[366508058,1750295442001,-860.69,0.00023835,6]
[366508059,1750295442012,-478.03,0.00023835,6]
[366508060,1750295442022,-2413.41,0.00023835,6]
[366508061,1750295442031,-460.0,0.00023835,6]
[366508062,1750295442039,-793.53,0.00023835,6]
[366508063,1750295442048,-460.0,0.00023835,6]
[366508064,1750295442057,-374.06342348,0.00023835,6]
[366508065,1750295442070,-460.0,0.00023835,6]
[366508066,1750295442080,-460.0,0.00023835,6]
[366508067,1750295442089,-954.75,0.00023835,6]
[366508068,1750295442099,-460.0,0.00023835,6]
[366508069,1750295442109,-460.0,0.00023835,6]
[366508070,1750295442119,-1740.08,0.00023835,6]
[366508071,1750295442129,-599.15,0.00023835,6]
[366508072,1750295442138,-460.0,0.00023835,6]
[366508073,1750295442148,-828.79,0.00023835,6]
[366508074,1750295442158,-300.0,0.00023835,2]
[366508075,1750295442167,-460.0,0.00023835,6]
[366508076,1750295442177,-1007.6,0.00023835,6]
[366508077,1750295442187,-759.0,0.00023835,6]
[366508078,1750295442196,-460.0,0.00023835,6]
[366508079,1750295442205,-460.0,0.00023835,6]
[366508080,1750295442215,-562.96,0.00023835,6]
[366508081,1750295442227,-460.0,0.00023835,6]
[366508082,1750295442237,-483.13,0.00023835,6]
[366508083,1750295442248,-460.0,0.00023835,6]
[366508084,1750295442258,-638.02,0.00023835,6]
[366508085,1750295442267,-460.0,0.00023835,6]
[366508086,1750295442277,-3000.0,0.0002384,2]
[366508087,1750295442286,-3000.0,0.0002384,2]
[366508088,1750295442295,-3000.0,0.0002385,2]
[366508089,1750295442305,-3000.0,0.0002385,2]
[366508090,1750295442314,-3000.0,0.0002386,2]
[366508091,1750295442323,-3000.0,0.0002386,2]
[366508092,1750295442333,-3000.0,0.0002387,2]
[366508093,1750295442342,-3000.0,0.0002387,2]
[366508094,1750295442352,-500.0,0.00023873,2]
[366508095,1750295442362,-500.0,0.00023873,2]
[366508096,1750295442372,-3000.0,0.0002388,2]
[366508097,1750295442382,-3000.0,0.0002388,2]
[366508098,1750295442391,-845.78193577,0.00023884,2]
[366508099,1750295442401,-424.70586748,0.00023884,2]
[366508100,1750295442411,-12542.39314967,0.00023885,2]
[366508101,1750295442420,-160.0,0.00023885,2]
[366508102,1750295442429,-835.98428123,0.00023885,2]
[366508103,1750295442439,-594.0,0.00023889,6]
[366508104,1750295442449,-151.0,0.00023889,6]
[366508105,1750295442458,-151.0,0.00023889,6]
[366508106,1750295442467,-151.0,0.00023889,6]
[366508107,1750295442476,-151.0,0.00023889,6]
[366508108,1750295442486,-151.0,0.00023889,6]
[366508109,1750295442495,-151.0,0.00023889,6]
[366508110,1750295442504,-151.0,0.00023889,6]
[366508111,1750295442514,-156.71109524,0.00023889,6]
[366508112,1750295442524,-500.0,0.00023889,6]
[366508113,1750295442534,-500.0,0.00023889,6]
[366508114,1750295442544,-151.0,0.00023889,6]
[366508115,1750295442553,-500.0,0.00023889,6]
[366508116,1750295442562,-151.0,0.00023889,6]
[366508117,1750295442571,-151.0,0.00023889,6]
[366508118,1750295442580,-500.0,0.00023889,6]
[366508119,1750295442590,-500.0,0.00023889,6]
[366508120,1750295442600,-151.0,0.00023889,6]
[366508121,1750295442609,-226.22414236,0.00023889,6]
[366508122,1750295442619,-271.34676969,0.00023889,6]
[366508123,1750295442629,-151.0,0.00023889,6]
[366508124,1750295442638,-193.34465452,0.00023889,6]
[366508125,1750295442647,-151.0,0.00023889,6]
[366508126,1750295442657,-287.63485949,0.00023889,6]
[366508127,1750295442667,-500.0,0.00023889,6]
[366508128,1750295442676,-3000.0,0.0002389,2]
[366508129,1750295442685,-3000.0,0.0002389,2]
[366508130,1750295442694,-395690.60209282,0.00023899,4]
[366508135,1750295443219,-152.0,0.00023,4]
[366508136,1750295443237,-6545.41527416,0.00023899,4]
[366508137,1750295443247,-7185.42543043,0.00023899,4]
[366508138,1750295443259,-270.74,0.00023899,4]
[366508141,1750295443760,-460.0,0.00021917,6]
[366508142,1750295443770,-460.0,0.00022191,6]
[366508143,1750295443781,-275.1,0.00022465,6]
[366508144,1750295443791,-1000.0,0.000238,2]
[366508145,1750295443801,-9788.17218752,0.00023899,4]
[366508146,1750295443817,-10079.14302192,0.00023899,4]
[366508156,1750295445009,-102486.74442689,0.00023899,4]
[366508219,1750295447234,-406.0,0.0002354,2]
[366508220,1750295447244,-2034.273355,0.00023899,4]
[366508221,1750295447256,-4459.64699422,0.00023899,4]
[366508222,1750295447267,-19628.68281036,0.00023899,4]
[366508223,1750295447279,-1463.32844247,0.00023899,4]
[366508224,1750295482249,150.0,0.00018676,2]
[366508225,1750295558602,150.0,0.0001857,2]
[366508226,1750295640923,700.0,0.00017912,2]
[366508227,1750295642192,150.0,0.00018326,2]
[366508228,1750295721334,150.0,0.00018371,2]
[366508230,1750295732451,163.421253,0.00013699,2]
[366508231,1750295799474,150.0,0.00018368,2]
[366508232,1750295877472,150.0,0.00018378,2]
[366508233,1750295958431,150.0,0.00018379,2]
[366508234,1750296036684,150.0,0.00018369,2]
[366508235,1750296115275,150.0,0.00018371,2]
[366508236,1750296195449,150.0,0.00018367,2]
[366508237,1750296276664,150.0,0.00018367,2]
[366508238,1750296355089,-183.12,0.00020773,2]
[366508239,1750296355111,-300.0,0.00020781,2]
[366508240,1750296355131,-300.0,0.00020781,2]
[366508241,1750296355152,-185.0,0.00020781,2]
[366508242,1750296355175,-500.0,0.00020782,2]
[366508243,1750296355199,-633.59794792,0.00020782,2]
[366508244,1750296355223,-500.0,0.00020782,2]
[366508245,1750296355245,-500.0,0.00020782,2]
[366508246,1750296355268,-500.0,0.00020782,2]
[366508247,1750296355293,-500.0,0.00020782,2]
[366508248,1750296355322,-500.0,0.00020782,2]
[366508249,1750296355350,-500.0,0.00020782,2]
[366508250,1750296355377,-169.593,0.00020782,2]
[366508251,1750296355401,-3970.3099357,0.00020783,2]
[366508252,1750296355453,150.0,0.00018365,2]
[366508254,1750296428085,-300.0,0.00020781,2]
[366508255,1750296428107,-300.0,0.00020782,2]
[366508256,1750296428130,-20929.6900643,0.00020783,2]
[366508257,1750296428154,-666.0,0.00020888,2]
[366508258,1750296428179,-534.16,0.00021863,2]
[366508259,1750296428208,-566.58952802,0.000219,6]
[366508260,1750296428229,-460.0,0.00021917,6]
[366508261,1750296428251,-460.0,0.00021917,6]
[366508262,1750296428272,-460.0,0.00021917,6]
[366508263,1750296428293,-400.0,0.00021917,6]
[366508264,1750296428315,-521.72815157,0.00021917,6]
[366508265,1750296428337,-460.0,0.00021917,6]
[366508266,1750296428357,-380.0,0.00021917,6]
[366508267,1750296428377,-460.0,0.00021917,2]
[366508268,1750296428397,-460.0,0.00021917,6]
[366508269,1750296428418,-460.0,0.00021917,2]
[366508270,1750296428438,-460.0,0.00021917,6]
[366508271,1750296428459,-460.0,0.00021917,6]
[366508272,1750296428481,-1717.28,0.00021917,6]
[366508273,1750296428504,-1518.31,0.00021917,6]
[366508274,1750296428525,-460.0,0.00021917,6]
[366508275,1750296428548,-597.7,0.00021917,6]
[366508276,1750296428569,-460.0,0.00021917,6]
[366508277,1750296428590,-259.99,0.00021917,6]
[366508278,1750296428610,-460.0,0.00021917,6]
[366508279,1750296428631,-460.0,0.00021917,6]
[366508280,1750296428652,-460.0,0.00021917,6]
[366508281,1750296428673,-430.0,0.00021917,6]
[366508282,1750296428694,-460.0,0.00021917,6]
[366508283,1750296428717,-611.32,0.00021917,6]
[366508284,1750296428738,-460.0,0.00021917,6]
[366508285,1750296428761,-552.53,0.00021917,6]
[366508286,1750296428783,-460.0,0.00021917,6]
[366508287,1750296428808,-460.0,0.00021917,6]
[366508288,1750296428831,-460.0,0.00021917,6]
[366508289,1750296428854,-460.0,0.00021917,6]
[366508290,1750296428876,-460.0,0.00021917,6]
[366508291,1750296428898,-460.0,0.00021917,6]
[366508292,1750296428920,-460.0,0.00021917,6]
[366508293,1750296428943,-460.0,0.00021917,6]
[366508294,1750296428965,-460.0,0.00021917,6]
[366508295,1750296428988,-460.0,0.00021917,6]
[366508296,1750296429009,-460.0,0.00021917,6]
[366508297,1750296429032,-1693.05,0.00021917,6]
[366508298,1750296429053,-396.84150893,0.00021917,6]
[366508299,1750296429073,-410.0,0.00021917,6]
[366508300,1750296429094,-460.0,0.00021917,6]
[366508301,1750296429115,-490.0,0.00021917,6]
[366508302,1750296429135,-460.0,0.00021917,6]
[366508303,1750296429159,-1186.28,0.00021917,6]
[366508304,1750296429183,-1532.69,0.00021917,6]
[366508305,1750296429204,-430.0,0.00021917,6]
[366508306,1750296429227,-460.0,0.00021917,6]
[366508307,1750296429248,-493.12,0.00021917,6]
[366508308,1750296429269,-570.0,0.00021917,6]
[366508309,1750296429289,-460.0,0.00021917,6]
[366508310,1750296429309,-460.0,0.00021917,6]
[366508311,1750296429331,-1722.64,0.00021917,6]
[366508312,1750296429352,-460.0,0.00021917,6]
[366508313,1750296429372,-460.0,0.00021917,6]
[366508314,1750296429394,-1058.89,0.00021917,6]
[366508315,1750296429414,-460.0,0.00021917,6]
[366508316,1750296429434,-182.0,0.00022,2]
[366508317,1750296429462,-566.58952793,0.00022038,6]
[366508318,1750296429483,-160.0,0.00022073,2]
[366508319,1750296429504,-835.98428123,0.00022073,2]
[366508320,1750296429524,-845.78193577,0.00022073,2]
[366508321,1750296429545,-424.70586748,0.00022073,2]
[366508322,1750296429574,-566.58952793,0.00022176,6]
[366508323,1750296429596,-460.0,0.0002219,6]
[366508324,1750296429618,-460.0,0.0002219,6]
[366508325,1750296429639,-460.0,0.0002219,6]
[366508326,1750296429662,-460.0,0.0002219,6]
[366508327,1750296429683,-460.0,0.0002219,6]
[366508328,1750296429704,-460.0,0.0002219,6]
[366508329,1750296429726,-460.0,0.0002219,6]
[366508330,1750296429748,-460.0,0.0002219,6]
[366508331,1750296429770,-460.0,0.0002219,6]
[366508332,1750296429792,-719.7,0.0002219,6]
[366508333,1750296429815,-691.11,0.0002219,6]
[366508334,1750296429837,-460.0,0.0002219,6]
[366508335,1750296429862,-1238.84,0.0002219,6]
[366508336,1750296429883,-300.0,0.0002219,2]
[366508337,1750296429905,-460.0,0.0002219,6]
[366508338,1750296429927,-720.22,0.0002219,6]
[366508339,1750296429951,-460.0,0.0002219,6]
[366508340,1750296429972,-536.64,0.0002219,6]
[366508341,1750296429993,-475.69427296,0.0002219,6]
[366508342,1750296430014,-802.99,0.0002219,6]
[366508343,1750296430037,-2009.66,0.0002219,6]
[366508344,1750296430058,-460.0,0.0002219,6]
[366508345,1750296430081,-460.0,0.00022191,2]
[366508346,1750296430102,-424.8675074,0.00022191,6]
[366508347,1750296430124,-460.0,0.00022191,6]
[366508348,1750296430146,-460.0,0.00022191,6]
[366508349,1750296430169,-1717.28,0.00022191,6]
[366508350,1750296430191,-1518.31,0.00022191,6]
[366508351,1750296430212,-460.0,0.00022191,6]
[366508352,1750296430234,-597.7,0.00022191,6]
[366508353,1750296430256,-460.0,0.00022191,6]
[366508354,1750296430278,-592.53446788,0.00022191,6]
[366508355,1750296430300,-460.0,0.00022191,6]
[366508356,1750296430320,-460.0,0.00022191,6]
[366508357,1750296430343,-460.0,0.00022191,6]
[366508358,1750296430366,-611.32,0.00022191,6]
[366508359,1750296430388,-552.53,0.00022191,6]
[366508360,1750296430410,-460.0,0.00022191,6]
[366508361,1750296430431,-460.0,0.00022191,6]
[366508362,1750296430451,-460.0,0.00022191,6]
[366508363,1750296430472,-460.0,0.00022191,6]
[366508364,1750296430493,-460.0,0.00022191,6]
[366508365,1750296430515,-460.0,0.00022191,6]
[366508366,1750296430538,-1693.05,0.00022191,6]
[366508367,1750296430560,-364.93684188,0.00022191,6]
[366508368,1750296430582,-1186.28,0.00022191,6]
[366508369,1750296430605,-1532.69,0.00022191,6]
[366508370,1750296430629,-460.0,0.00022191,6]
[366508371,1750296430652,-493.12,0.00022191,6]
[366508372,1750296430676,-1722.64,0.00022191,6]
[366508373,1750296430698,-1058.89,0.00022191,6]
[366508374,1750296430720,-460.0,0.00022191,6]
[366508375,1750296430748,-566.58952793,0.00022314,7]
[366508376,1750296430771,-168.0,0.00022406,2]
[366508377,1750296430800,-566.58952793,0.00022452,7]
[366508378,1750296430821,-460.0,0.00022464,6]
[366508379,1750296430841,-460.0,0.00022464,6]
[366508380,1750296430865,-460.0,0.00022464,6]
[366508381,1750296430887,-460.0,0.00022464,6]
[366508382,1750296430910,-460.0,0.00022464,6]
[366508383,1750296430933,-460.0,0.00022464,6]
[366508384,1750296430954,-460.0,0.00022464,6]
[366508385,1750296430976,-719.7,0.00022464,6]
[366508386,1750296430998,-691.11,0.00022464,6]
[366508387,1750296431019,-460.0,0.00022464,6]
[366508388,1750296431040,-1238.84,0.00022464,6]
[366508389,1750296431060,-300.0,0.00022464,2]
[366508390,1750296431082,-720.22,0.00022464,6]
[366508391,1750296431105,-460.0,0.00022464,6]
[366508392,1750296431126,-536.64,0.00022464,6]
[366508393,1750296431149,-802.99,0.00022464,6]
[366508394,1750296431171,-2009.66,0.00022464,6]
[366508395,1750296431193,-460.0,0.00022464,6]
[366508396,1750296431215,-188.53992195,0.00022464,2]
[366508397,1750296431235,-256.5559065,0.00022465,2]
[366508398,1750296431257,-460.0,0.00022465,6]
[366508399,1750296431280,-1717.28,0.00022465,6]
[366508400,1750296431303,-1518.31,0.00022465,6]
[366508401,1750296431324,-460.0,0.00022465,6]
[366508402,1750296431347,-597.7,0.00022465,6]
[366508403,1750296431369,-460.0,0.00022465,6]
[366508404,1750296431390,-460.0,0.00022465,6]
[366508405,1750296431412,-460.0,0.00022465,6]
[366508406,1750296431433,-460.0,0.00022465,6]
[366508407,1750296431455,-611.32,0.00022465,6]
[366508408,1750296431478,-552.53,0.00022465,6]
[366508409,1750296431500,-460.0,0.00022465,6]
[366508410,1750296431521,-460.0,0.00022465,6]
[366508411,1750296431543,-460.0,0.00022465,6]
[366508412,1750296431565,-460.0,0.00022465,6]
[366508413,1750296431588,-460.0,0.00022465,6]
[366508414,1750296431610,-460.0,0.00022465,6]
[366508415,1750296431632,-1693.05,0.00022465,6]
[366508416,1750296431655,-1186.28,0.00022465,6]
[366508417,1750296431678,-1532.69,0.00022465,6]
[366508418,1750296431700,-460.0,0.00022465,6]
[366508419,1750296431723,-493.12,0.00022465,6]
[366508420,1750296431746,-1722.64,0.00022465,6]
[366508421,1750296431770,-1058.89,0.00022465,6]
[366508422,1750296431791,-460.0,0.00022465,6]
[366508423,1750296431949,-207.4,0.00022508,2]
[366508424,1750296431971,-5000.0,0.00022508,2]
[366508425,1750296431994,-500.0,0.00022508,2]
[366508426,1750296432016,-500.0,0.00022508,2]
[366508427,1750296432039,-500.0,0.00022508,2]
[366508428,1750296432066,-500.0,0.00022508,2]
[366508429,1750296432088,-500.0,0.00022508,2]
[366508430,1750296432110,-500.0,0.00022508,2]
[366508431,1750296432133,-500.0,0.00022508,2]
[366508432,1750296432155,-500.0,0.00022508,2]
[366508433,1750296432177,-500.0,0.00022508,2]
[366508434,1750296432199,-500.0,0.00022508,2]
[366508435,1750296432220,-500.0,0.00022508,2]
[366508436,1750296432243,-500.0,0.00022508,2]
[366508437,1750296432265,-500.0,0.00022508,2]
[366508438,1750296432286,-500.0,0.00022508,2]
[366508439,1750296432308,-500.0,0.00022508,2]
[366508440,1750296432329,-1809.5946463,0.00022508,2]
[366508441,1750296432358,-566.58952793,0.0002259,7]
[366508442,1750296432380,-420.0,0.0002261,2]
[366508443,1750296432402,-420.0,0.00022611,2]
[366508444,1750296432423,-170.92883004,0.00022618,2]
[366508445,1750296432450,-566.58952793,0.00022728,7]
[366508446,1750296432472,-401.51,0.00022728,3]
[366508447,1750296432493,-200.75,0.00022728,3]
[366508448,1750296432515,-602.29,0.00022728,3]
[366508449,1750296432535,-362.86,0.00022729,3]
[366508450,1750296432555,-500.0,0.00022737,2]
[366508451,1750296432576,-160.0,0.00022737,2]
[366508452,1750296432598,-640.99,0.00022737,2]
[366508453,1750296432619,-460.0,0.00022738,6]
[366508454,1750296432639,-460.0,0.00022738,6]
[366508455,1750296432660,-460.0,0.00022738,6]
[366508456,1750296432681,-460.0,0.00022738,6]
[366508457,1750296432702,-460.0,0.00022738,6]
[366508458,1750296432725,-460.0,0.00022738,6]
[366508459,1750296432746,-460.0,0.00022738,6]
[366508460,1750296432768,-719.7,0.00022738,6]
[366508461,1750296432792,-691.11,0.00022738,6]
[366508462,1750296432813,-460.0,0.00022738,6]
[366508463,1750296432836,-1238.84,0.00022738,6]
[366508464,1750296432860,-300.0,0.00022738,2]
[366508465,1750296432882,-720.22,0.00022738,6]
[366508466,1750296432904,-460.0,0.00022738,6]
[366508467,1750296432927,-536.64,0.00022738,6]
[366508468,1750296432952,-802.99,0.00022738,6]
[366508469,1750296432974,-2009.66,0.00022738,6]
[366508470,1750296432995,-460.0,0.00022738,6]
[366508471,1750296433018,-460.0,0.00022739,6]
[366508472,1750296433042,-1717.28,0.00022739,6]
[366508473,1750296433064,-1518.31,0.00022739,6]
[366508474,1750296433086,-460.0,0.00022739,6]
[366508475,1750296433108,-597.7,0.00022739,6]
[366508476,1750296433130,-460.0,0.00022739,6]
[366508477,1750296433153,-460.0,0.00022739,6]
[366508478,1750296433176,-460.0,0.00022739,6]
[366508479,1750296433198,-460.0,0.00022739,6]
[366508480,1750296433220,-611.32,0.00022739,6]
[366508481,1750296433243,-552.53,0.00022739,6]
[366508482,1750296433265,-460.0,0.00022739,6]
[366508483,1750296433287,-460.0,0.00022739,6]
[366508484,1750296433308,-460.0,0.00022739,6]
[366508485,1750296433330,-460.0,0.00022739,6]
[366508486,1750296433352,-460.0,0.00022739,6]
[366508487,1750296433373,-460.0,0.00022739,6]
[366508488,1750296433397,-1693.05,0.00022739,6]
[366508489,1750296433419,-1186.28,0.00022739,6]
[366508490,1750296433442,-1532.69,0.00022739,6]
[366508491,1750296433464,-460.0,0.00022739,6]
[366508492,1750296433485,-493.12,0.00022739,6]
[366508493,1750296433508,-1722.64,0.00022739,6]
[366508494,1750296433530,-1058.89,0.00022739,6]
[366508495,1750296433551,-460.0,0.00022739,6]
[366508496,1750296433572,-1000.0,0.000228,2]
[366508497,1750296433592,-1000.0,0.000228,3]
[366508498,1750296433619,-566.58952793,0.00022866,8]
[366508499,1750296433648,-566.58952793,0.00023003,8]
[366508500,1750296433669,-460.0,0.00023012,6]
[366508501,1750296433692,-460.0,0.00023012,6]
[366508502,1750296433715,-460.0,0.00023012,6]
[366508503,1750296433737,-460.0,0.00023012,6]
[366508504,1750296433761,-460.0,0.00023012,6]
[366508505,1750296433784,-460.0,0.00023012,6]
[366508506,1750296433808,-460.0,0.00023012,6]
[366508507,1750296433832,-719.7,0.00023012,6]
[366508508,1750296433857,-691.11,0.00023012,6]
[366508509,1750296433884,-375.99782168,0.00023012,6]
[366508510,1750296433908,-1238.84,0.00023012,6]
[366508511,1750296433930,-300.0,0.00023012,2]
[366508512,1750296433955,-720.22,0.00023012,6]
[366508513,1750296433978,-460.0,0.00023012,6]
[366508514,1750296434000,-536.64,0.00023012,6]
[366508515,1750296434025,-802.99,0.00023012,6]
[366508516,1750296434049,-2009.66,0.00023012,6]
[366508517,1750296434072,-460.0,0.00023012,6]
[366508518,1750296434094,-460.0,0.00023013,6]
[366508519,1750296434118,-1717.28,0.00023013,6]
[366508520,1750296434141,-1518.31,0.00023013,6]
[366508521,1750296434163,-460.0,0.00023013,6]
[366508522,1750296434187,-597.7,0.00023013,6]
[366508523,1750296434208,-460.0,0.00023013,6]
[366508524,1750296434231,-460.0,0.00023013,6]
[366508525,1750296434253,-460.0,0.00023013,6]
[366508526,1750296434276,-460.0,0.00023013,6]
[366508527,1750296434299,-611.32,0.00023013,6]
[366508528,1750296434322,-552.53,0.00023013,6]
[366508529,1750296434344,-460.0,0.00023013,6]
[366508530,1750296434365,-460.0,0.00023013,6]
[366508531,1750296434394,-448.10003677,0.00023013,6]
[366508532,1750296434415,-460.0,0.00023013,6]
[366508533,1750296434436,-460.0,0.00023013,6]
[366508534,1750296434458,-460.0,0.00023013,6]
[366508535,1750296434483,-1693.05,0.00023013,6]
[366508536,1750296434506,-1186.28,0.00023013,6]
[366508537,1750296434530,-1532.69,0.00023013,6]
[366508538,1750296434551,-460.0,0.00023013,6]
[366508539,1750296434573,-493.12,0.00023013,6]
[366508540,1750296434595,-1722.64,0.00023013,6]
[366508541,1750296434619,-1058.89,0.00023013,6]
[366508542,1750296434640,-460.0,0.00023013,6]
[366508543,1750296434662,-252.0,0.00023024,2]
[366508544,1750296434684,-153.0,0.00023128,2]
[366508545,1750296434704,-153.0,0.00023128,2]
[366508546,1750296434726,-153.0,0.00023128,2]
[366508547,1750296434747,-153.0,0.00023128,2]
[366508548,1750296434775,-566.58952793,0.00023141,8]
[366508549,1750296434797,-170.92883004,0.00023229,2]
[366508550,1750296434817,-365.4091647,0.00023233,2]
[366508551,1750296434846,-566.58952793,0.00023279,8]
[366508552,1750296434871,-460.0,0.00023286,6]
[366508553,1750296434892,-460.0,0.00023286,6]
[366508554,1750296434915,-460.0,0.00023286,6]
[366508555,1750296434940,-460.0,0.00023286,6]
[366508556,1750296434962,-460.0,0.00023286,6]
[366508557,1750296434985,-460.0,0.00023286,6]
[366508558,1750296435008,-460.0,0.00023286,6]
[366508559,1750296435033,-719.7,0.00023286,6]
[366508560,1750296435056,-691.11,0.00023286,6]
[366508561,1750296435079,-1238.84,0.00023286,6]
[366508562,1750296435101,-300.0,0.00023286,2]
[366508563,1750296435126,-720.22,0.00023286,6]
[366508564,1750296435148,-460.0,0.00023286,6]
[366508565,1750296435170,-536.64,0.00023286,6]
[366508566,1750296435193,-802.99,0.00023286,6]
[366508567,1750296435215,-2009.66,0.00023286,6]
[366508568,1750296435236,-460.0,0.00023286,6]
[366508569,1750296435258,-460.0,0.00023287,6]
[366508570,1750296435280,-1717.28,0.00023287,6]
[366508571,1750296435303,-1518.31,0.00023287,6]
[366508572,1750296435325,-460.0,0.00023287,6]
[366508573,1750296435347,-597.7,0.00023287,6]
[366508574,1750296435369,-460.0,0.00023287,6]
[366508575,1750296435390,-460.0,0.00023287,6]
[366508576,1750296435412,-460.0,0.00023287,6]
[366508577,1750296435433,-273.35622616,0.00023287,6]
[366508578,1750296435456,-611.32,0.00023287,6]
[366508579,1750296435479,-552.53,0.00023287,6]
[366508580,1750296435501,-460.0,0.00023287,6]
[366508581,1750296435524,-460.0,0.00023287,6]
[366508582,1750296435546,-460.0,0.00023287,6]
[366508583,1750296435567,-460.0,0.00023287,6]
[366508584,1750296435588,-460.0,0.00023287,6]
[366508585,1750296435611,-1693.05,0.00023287,6]
[366508586,1750296435634,-1186.28,0.00023287,6]
[366508587,1750296435780,-1532.69,0.00023287,6]
[366508588,1750296435803,-460.0,0.00023287,6]
[366508589,1750296435824,-493.12,0.00023287,6]
[366508590,1750296435849,-1722.64,0.00023287,6]
[366508591,1750296435874,-1058.89,0.00023287,6]
[366508592,1750296435895,-460.0,0.00023287,6]
[366508593,1750296435926,-566.58952793,0.00023417,9]
[366508594,1750296435950,-2028.349241,0.00023418,3]
[366508595,1750296435971,-39450.25,0.00023431,11]
[366508596,1750296435991,-516.74422016,0.0002346,2]
[366508597,1750296436012,-197.78453008,0.00023495,2]
[366508598,1750296436033,-1655.5,0.000235,4]
[366508599,1750296436054,-2000.0,0.000235,4]
[366508600,1750296436283,-353.9875236,0.00023534,2]